bitfinex-derivatives/quotes_ETHF0:USTF0_20250918
["timestamp","ask_amount","ask_price","bid_price","bid_amount"]
[1758210087181,0.2088,4602.9,4602.8,0.703]
[1758210087376,0.6226,4602.9,4602.8,0.703]
[1758210087576,4.69131755,4602.9,4602.1,0.3087]
[1758210087770,0.7186,4602.2,4602.1,0.5048]
[1758210087974,0.7186,4602.2,4601.8,3.2078]
[1758210088175,0.4026,4602.0,4601.9,0.3087]
[1758210088377,0.7186,4602.0,4601.9,0.3087]
[1758210088583,0.7186,4602.0,4601.9,0.5048]
[1758210089975,0.4026,4602.0,4601.9,0.703]
[1758210090578,0.7186,4602.0,4601.9,0.703]
[1758210091071,0.4026,4602.0,4601.9,0.703]
[1758210091277,0.6226,4602.0,4601.9,0.703]
[1758210091984,0.2088,4602.4,4602.3,0.703]
[1758210092185,0.9386,4602.4,4602.3,0.703]
[1758210092384,1.48261882,4602.4,4602.3,0.703]
[1758210092688,1.48261882,4602.4,4602.3,0.5048]
[1758210093880,0.9386,4602.4,4602.3,0.5048]
[1758210097181,4.1464,4602.4,4602.1,0.3029]
[1758210097386,4.1464,4602.4,4601.7,0.3246]
[1758210098278,0.5437331,4602.3,4601.7,0.3246]
[1758210098486,0.7248,4601.8,4601.7,0.0217]
[1758210098685,0.9448,4601.8,4601.7,0.0217]
[1758210098884,0.4142,4601.5,4601.4,0.5093]
[1758210099080,0.7248,4601.5,4601.4,0.5093]
[1758210099384,0.092,4602.0,4601.6,0.2064]
[1758210099385,0.5212,4601.7,4601.6,0.2064]
[1758210099581,3.2078,4601.9,4601.7,0.3029]
[1758210099783,0.22,4601.8,4601.7,0.7205]
[1758210099982,0.4306,4601.8,4601.7,0.7205]
[1758210100185,0.6342,4601.8,4601.7,0.7205]
[1758210101983,0.2106,4602.3,4602.2,0.4176]
[1758210102184,0.4306,4602.3,4602.2,0.7205]
[1758210102388,0.9448,4602.3,4602.2,0.7205]
[1758210102887,0.9448,4602.3,4601.6,0.3029]
[1758210103287,0.3106,4601.6,4601.5,0.0217]
[1758210103487,0.9448,4601.6,4601.5,0.0217]
[1758210103883,1.48935701,4601.6,4601.5,0.0217]
[1758210104597,1.48935701,4601.6,4601.0,0.3029]
[1758210104788,0.7248,4601.1,4601.0,0.8411]
[1758210104988,0.9448,4601.1,4601.0,0.8411]
[1758210105891,0.4142,4600.6,4600.5,0.844]
[1758210106090,0.6342,4600.6,4600.5,0.844]
[1758210107097,3.9326,4601.3,4601.2,0.2064]
[1758210107296,4.9365952,4601.3,4601.2,0.5093]
[1758210109602,4.6977495,4601.3,4601.2,0.5093]
[1758210109896,4.93668575,4601.3,4601.2,0.5093]
[1758210111993,4.93668575,4601.3,4600.5,0.1235]
[1758210112194,0.2106,4600.7,4600.6,0.7205]
[1758210112398,0.4306,4600.7,4600.6,0.7205]
[1758210113100,0.22,4600.7,4600.6,0.7205]
[1758210115699,0.2089,4601.3,4601.2,0.6878]
[1758210115906,0.4289,4601.3,4601.2,0.6878]
[1758210116095,1.42445427,4601.3,4601.2,0.6878]
[1758210116406,1.42445427,4601.3,4601.2,0.4825]
[1758210116407,1.73905427,4601.3,4601.2,0.4825]
[1758210117098,1.73905427,4601.3,4601.0,0.0217]
[1758210117304,0.7345,4601.1,4601.0,0.0217]
[1758210117503,1.51905427,4601.1,4601.0,0.0217]
[1758210118905,1.73905427,4601.1,4601.0,0.0217]
[1758210119505,1.73905427,4601.1,4601.0,0.5042]
[1758210120005,1.73905427,4601.1,4601.0,0.4825]
[1758210120304,0.7345,4600.6,4600.5,0.291]
[1758210120499,1.49997868,4600.6,4600.5,0.813]
[1758210120805,1.18537868,4600.6,4600.5,0.813]
[1758210121300,0.75647868,4600.6,4600.5,0.813]
[1758210121506,0.22,4600.6,4600.5,0.522]
[1758210121800,0.7345,4601.4,4601.3,0.1915]
[1758210122001,1.73963324,4601.4,4601.3,0.4825]
[1758210122402,1.51963324,4601.4,4601.3,0.4825]
[1758210122606,1.73963324,4601.4,4601.3,0.4825]
[1758210123506,1.73963324,4601.4,4601.3,0.291]
[1758210123809,1.73963324,4601.4,4601.1,0.3127]
[1758210124003,0.7345,4601.2,4601.1,0.3127]
[1758210124311,1.51963324,4601.2,4601.1,0.3127]
[1758210124604,1.51963324,4601.2,4601.1,0.0217]
[1758210125602,1.51963324,4601.2,4600.1,0.3186]
[1758210125801,0.3175,4600.1,4600.0,0.3186]
[1758210126004,1.71188339,4600.1,4600.0,0.3186]
[1758210126211,1.47248812,4600.1,4600.0,0.3186]
[1758210126511,1.71187668,4600.1,4599.2,3.2078]
[1758210126811,0.7066,4599.6,4599.1,0.3186]
[1758210127007,0.7066,4599.2,4599.1,0.5215]
[1758210127311,1.71188844,4599.2,4599.1,0.7247]
[1758210127708,1.71188844,4599.2,4599.1,0.5215]
[1758210128009,1.71188844,4599.2,4599.1,0.7247]
[1758210128513,1.15498812,4599.2,4599.1,0.7247]
[1758210130116,1.47248812,4599.2,4599.1,0.3186]
[1758210130615,1.47248812,4599.2,4599.1,0.5215]
[1758210131312,1.47248812,4599.2,4599.1,0.7247]
[1758210131513,1.25248812,4599.2,4599.1,0.7247]
[1758210131708,1.15498812,4599.2,4599.1,0.7247]
[1758210132020,0.93498812,4599.2,4599.1,0.7247]
[1758210132314,1.15498812,4599.2,4599.1,0.7247]
[1758210132615,0.3175,4599.5,4599.2,0.3186]
[1758210132815,0.3891,4599.3,4599.2,0.7247]
[1758210133010,0.934339,4599.3,4599.2,0.7247]
[1758210133212,1.251839,4599.3,4599.2,0.7247]
[1758210133411,0.3891,4598.8,4598.7,0.7247]
[1758210133613,0.6091,4598.8,4598.7,0.7247]
[1758210133815,0.9266,4598.8,4598.7,0.7247]
[1758210134312,0.6091,4598.8,4598.7,0.7247]
[1758210134513,0.4166,4598.8,4598.7,0.7247]
[1758210134815,40.8,4599.1,4598.7,0.7247]
[1758210135009,0.3175,4599.4,4598.8,0.3186]
[1758210135010,0.22,4599.0,4598.8,0.3186]
[1758210135219,0.4166,4599.0,4598.9,0.7247]
[1758210135413,0.9266,4599.0,4598.9,0.7247]
[1758210135614,0.6091,4599.0,4598.9,0.7247]
[1758210136115,40.8,4599.3,4599.0,0.434]
[1758210136321,40.9966,4599.3,4599.2,0.7247]
[1758210136619,40.8,4599.3,4599.2,0.7247]
[1758210136921,0.4166,4599.3,4599.2,0.7247]
[1758210137416,0.3175,4600.2,4599.5,0.1154]
[1758210137614,0.1966,4600.0,4599.9,0.7247]
[1758210137819,0.22,4600.0,4599.9,0.7247]
[1758210138119,0.4166,4600.0,4599.9,0.7247]
[1758210138320,0.9266,4600.0,4599.9,0.7247]
[1758210138516,0.6091,4600.0,4599.7,3.5264]
[1758210138717,0.7066,4599.8,4599.7,3.5264]
[1758210139022,0.7066,4599.8,4599.7,3.7293]
[1758210139422,0.9266,4599.8,4599.7,3.7293]
[1758210140121,0.9266,4599.8,4599.3,0.3186]
[1758210140419,0.3891,4599.0,4598.9,3.5264]
[1758210140614,0.9266,4599.0,4598.9,3.4107]
[1758210140923,0.9266,4599.0,4598.9,3.7293]
[1758210141118,0.9266,4599.0,4598.9,3.9325]
[1758210142113,0.1966,4599.0,4598.9,3.9325]
[1758210142321,0.4166,4599.0,4598.9,3.9325]
[1758210142522,0.6091,4599.0,4598.9,3.9325]
[1758210142718,0.9266,4599.0,4598.9,3.9325]
[1758210143221,0.9266,4599.0,4598.9,3.2078]
[1758210143418,1.57879957,4599.0,4598.9,3.2078]
[1758210143926,1.47169957,4599.0,4598.9,3.7293]
[1758210144428,1.47169791,4599.0,4598.9,3.7293]
[1758210146826,1.47169791,4599.0,4598.9,3.2078]
[1758210147020,5.02532078,4599.0,4598.5,0.3186]
[1758210147226,0.3891,4598.3,4598.2,0.3186]
[1758210147430,0.9266,4598.3,4598.2,0.3403]
[1758210147619,41.7266,4598.3,4598.2,0.3403]
[1758210147823,41.7266,4598.3,4598.2,0.5432]
[1758210148024,41.4091,4598.3,4598.2,0.7464]
[1758210148627,0.3175,4599.0,4598.2,0.4278]
[1758210148827,0.96190462,4598.9,4598.8,0.7247]
[1758210149033,0.4166,4598.9,4598.8,0.7247]
[1758210149223,41.2166,4598.9,4598.8,0.7247]
[1758210149425,41.76192859,4598.9,4598.8,0.7247]
[1758210149821,0.96192859,4598.9,4598.8,0.7247]
[1758210150023,0.22,4598.9,4598.8,0.7247]
[1758210150930,0.4166,4598.9,4598.8,0.7247]
[1758210151125,40.8,4599.2,4598.8,0.7247]
[1758210151331,40.8,4599.2,4599.1,0.7247]
[1758210151825,0.22,4599.2,4599.1,0.7247]
[1758210152629,0.4166,4599.2,4599.1,0.7247]
[1758210153528,1.15507304,4599.2,4599.1,0.7247]
[1758210153825,35.231,4599.3,4599.1,0.7247]
[1758210154031,35.231,4599.3,4599.2,0.7247]
[1758210154436,3.4044,4600.0,4599.9,0.7247]
[1758210154636,4.40968815,4600.0,4599.9,0.7247]
[1758210154934,4.60218815,4600.0,4599.9,0.7247]
[1758210155126,4.91968815,4600.0,4599.9,0.7247]
[1758210156527,4.91968815,4600.0,4599.9,0.5215]
[1758210156731,0.7153,4599.2,4599.1,3.4057]
[1758210157030,0.9353,4599.2,4599.1,0.4969]
[1758210157234,1.4819756,4599.2,4599.1,0.4969]
[1758210157430,1.7212742,4599.2,4599.1,0.4969]
[1758210157730,42.5212742,4599.2,4598.5,0.1154]
[1758210157936,0.3177,4598.6,4598.4,3.2078]
[1758210158231,0.7153,4598.2,4598.1,0.299]
[1758210158435,0.7153,4598.0,4597.9,0.299]
[1758210158735,1.26840722,4598.0,4597.9,0.4969]
[1758210159229,1.26840722,4598.0,4597.3,3.2078]
[1758210159230,0.3177,4597.9,4597.3,3.2078]
[1758210159431,0.3976,4597.4,4596.8,3.2078]
[1758210159642,0.3976,4596.9,4596.8,3.9134]
[1758210159936,0.6176,4596.9,4596.8,3.9134]
[1758210160229,3.2078,4597.8,4596.8,3.9134]
[1758210160230,0.3177,4597.7,4597.1,0.299]
[1758210160536,0.3177,4597.0,4596.8,3.2078]
[1758210160738,0.9353,4596.9,4596.8,3.4057]
[1758210161036,0.9353,4596.9,4596.8,3.7047]
[1758210161232,0.3177,4597.4,4596.8,3.6144]
[1758210161436,3.2078,4597.8,4596.8,3.6144]
[1758210161437,0.22,4597.3,4597.2,0.4066]
[1758210161733,0.22,4597.3,4597.2,0.7056]
[1758210161927,0.3177,4598.3,4597.2,0.7056]
[1758210162129,1.73545541,4598.2,4598.1,0.4969]
[1758210162331,42.53545541,4598.2,4598.1,0.4969]
[1758210162527,41.99775541,4598.2,4598.1,0.7056]
[1758210162739,41.96981248,4598.2,4598.1,0.7056]
[1758210163226,0.3177,4598.1,4597.8,0.299]
[1758210163431,0.7153,4597.8,4597.7,3.2078]
[1758210163633,41.02,4598.2,4597.7,3.9134]
[1758210163639,40.8,4598.2,4597.7,3.9134]
[1758210163834,1.48835855,4598.1,4598.0,0.299]
[1758210164031,0.7153,4597.9,4597.8,0.4969]
[1758210164338,0.3976,4597.9,4597.8,0.4969]
[1758210164539,0.3976,4597.9,4597.8,0.7056]
[1758210165539,0.1937,4597.9,4597.8,0.7056]
[1758210165831,0.1937,4597.9,4597.7,3.2078]
[1758210165832,0.3177,4598.8,4598.4,0.299]
[1758210166034,0.3976,4598.5,4598.4,0.7056]
[1758210166230,0.963099,4598.5,4598.4,0.7056]
[1758210166436,1.19729901,4598.5,4598.4,0.7056]
[1758210166636,35.6296,4599.2,4599.1,0.1979]
[1758210166836,36.96788612,4599.2,4599.1,0.4969]
[1758210168941,36.96788612,4599.2,4598.6,0.299]
[1758210169135,0.3976,4598.7,4598.6,0.4969]
[1758210169342,0.6186,4598.7,4598.6,0.7056]
[1758210170535,0.4147,4598.7,4598.6,0.7056]
[1758210174745,0.2061,4598.2,4598.0,0.1242]
[1758210175044,0.293,4598.8,4598.1,0.4153]
[1758210175246,0.293,4598.8,4598.0,0.1242]
[1758210175247,1.02130331,4598.7,4598.2,0.3155]
[1758210175447,0.4114,4598.7,4598.6,0.7308]
[1758210175747,0.77331245,4598.7,4598.6,0.7308]
[1758210175946,0.221,4598.7,4598.6,0.7308]
[1758210180046,0.4271,4598.7,4598.6,0.7308]
[1758210180247,0.97938422,4598.7,4598.6,0.7308]
[1758210180446,0.4271,4598.7,4598.6,0.7308]
[1758210180646,0.97935154,4598.7,4598.6,0.7308]
[1758210181042,0.77325154,4598.7,4598.6,0.7308]
[1758210181245,3.2078,4599.0,4598.7,0.3155]
[1758210181447,3.2078,4599.0,4598.5,0.1209]
[1758210181448,3.2078,4599.0,4598.9,0.7308]
[1758210181649,3.4288,4599.0,4598.9,0.7308]
[1758210182344,0.221,4599.0,4598.9,0.7308]
[1758210183648,3.4139,4599.6,4599.5,0.8517]
[1758210183855,4.22896962,4599.6,4599.5,0.8517]
[1758210184548,3.98101992,4599.6,4599.5,0.8517]
[1758210184939,4.18711992,4599.6,4599.5,0.8517]
[1758210185348,0.77321992,4599.6,4599.5,0.8517]
[1758210185550,0.221,4599.6,4599.5,0.5362]
[1758210185749,0.221,4599.6,4599.5,0.8401]
[1758210185947,35.237,4600.1,4599.5,0.8401]
[1758210185948,35.4357,4600.1,4600.0,0.5331]
[1758210186154,36.45679199,4600.1,4600.0,0.837]
[1758210186554,36.66189199,4600.1,4600.0,0.837]
[1758210186944,36.95709199,4600.1,4600.0,0.837]
[1758210187156,36.9570711,4600.1,4600.0,0.837]
[1758210188551,35.237,4600.1,4600.0,0.837]
[1758210188755,35.457,4600.1,4600.0,0.837]
[1758210188957,35.6557,4600.1,4600.0,0.837]
[1758210190354,0.22,4600.1,4600.0,0.837]
[1758210190556,0.4187,4600.1,4600.0,0.837]
[1758210191651,0.22,4600.1,4600.0,0.837]
[1758210191956,0.22,4600.2,4600.1,0.7128]
[1758210192661,0.22,4600.3,4600.2,0.7128]
[1758210195167,0.2952,4600.9,4600.2,0.7128]
[1758210195168,0.2952,4600.9,4600.3,0.3039]
[1758210195468,0.22,4600.6,4600.5,0.837]
[1758210195669,3.2078,4601.5,4600.9,0.3039]
[1758210195972,1.49841591,4601.4,4601.3,0.7128]
[1758210196267,1.47039222,4601.4,4601.3,0.7128]
[1758210198070,1.47039222,4601.4,4601.3,0.5013]
[1758210198270,1.71769836,4601.4,4601.1,0.3039]
[1758210198567,0.699,4601.2,4600.0,3.332]
[1758210198767,0.4038,4600.2,4600.0,3.2078]
[1758210199071,0.919,4600.1,4600.0,4.0448]
[1758210199270,0.919,4600.1,4600.0,3.2078]
[1758210199971,0.4038,4600.1,4600.0,4.0448]
[1758210200165,0.4187,4600.1,4600.0,4.0448]
[1758210200374,0.22,4600.1,4600.0,4.0448]
[1758210200871,0.4038,4600.1,4600.0,4.0448]
[1758210201273,0.4038,4600.1,4600.0,3.7409]
[1758210201568,0.699,4600.1,4600.0,3.7409]
[1758210201967,0.699,4600.1,4600.0,4.0448]
[1758210202168,0.4038,4600.1,4600.0,4.0448]
[1758210205267,0.699,4600.1,4600.0,4.0448]
[1758210205474,0.699,4600.1,4600.0,0.5013]
[1758210206372,0.4038,4600.1,4600.0,0.837]
[1758210206571,0.2952,4600.0,4599.5,0.1209]
[1758210206779,0.699,4599.7,4599.6,0.3039]
[1758210206976,0.699,4599.7,4599.6,0.0217]
[1758210206977,1.71885585,4599.7,4599.6,0.0217]
[1758210207773,1.71885585,4599.7,4599.6,0.2191]
[1758210208077,1.71885585,4599.7,4599.6,0.7345]
[1758210208078,0.99855585,4599.7,4599.6,0.7345]
[1758210208279,0.22,4599.7,4599.6,0.7345]
[1758210209774,0.919,4599.7,4599.6,0.7345]
[1758210210177,1.47111309,4599.7,4599.6,0.523]
[1758210210781,1.71946677,4599.7,4599.6,0.0217]
[1758210211170,5.71946677,4599.7,4599.6,0.0217]
[1758210211775,5.71946677,4599.7,4599.6,0.523]
[1758210212083,5.71946677,4599.7,4599.6,0.5013]
[1758210212381,5.71946677,4599.7,4599.6,0.3039]
[1758210212582,5.71946677,4599.7,4599.6,0.5013]
[1758210213083,1.71946677,4599.7,4599.6,0.7128]
[1758210213383,1.02046677,4599.7,4599.6,0.7128]
[1758210213784,0.22,4599.7,4599.6,0.7128]
[1758210214076,0.2952,4600.4,4600.3,0.4089]
[1758210214077,0.1987,4600.4,4600.3,0.4089]
[1758210214271,0.1987,4600.4,4600.3,0.7128]
[1758210214272,0.99946782,4600.4,4600.3,0.7128]
[1758210214477,1.02076782,4600.4,4600.3,0.7128]
[1758210214683,1.71976782,4600.4,4600.3,0.7128]
[1758210215681,1.42456782,4600.4,4600.3,0.7128]
[1758210216375,0.99946782,4600.4,4600.3,0.7128]
[1758210216682,1.02076782,4600.4,4600.3,0.7128]
[1758210217381,1.21936782,4600.4,4600.3,0.7128]
[1758210219785,1.71696782,4600.4,4600.3,0.7128]
[1758210220387,1.71696782,4600.4,4600.1,0.0217]
[1758210220680,0.6962,4600.2,4600.1,0.0217]
[1758210220884,1.49696782,4600.2,4600.1,0.0217]
[1758210221083,0.2992,4600.1,4599.8,0.319]
[1758210221386,0.6962,4599.9,4599.8,0.5144]
[1758210221586,0.94932659,4599.9,4599.8,0.7097]
[1758210221784,0.22,4599.9,4599.8,0.7097]
[1758210222288,0.617,4599.9,4599.8,0.7097]
[1758210222778,1.16898067,4599.9,4599.8,0.7097]
[1758210222980,1.46818067,4599.9,4599.8,0.7097]
[1758210223689,1.46818067,4599.9,4599.8,0.319]
[1758210224285,1.46818067,4599.9,4599.8,0.5144]
[1758210224679,0.4978,4599.8,4599.7,3.5268]
[1758210224885,0.6962,4599.8,4599.7,3.7222]
[1758210226389,0.6962,4599.8,4599.7,3.9175]
[1758210227188,1.2485805,4599.8,4599.7,3.9175]
[1758210227785,0.9493805,4599.8,4599.7,3.9175]
[1758210227982,0.1986,4599.8,4599.7,3.9175]
[1758210228183,0.1986,4600.1,4600.0,0.1178]
[1758210228384,0.79944544,4600.1,4600.0,0.5085]
[1758210228586,0.77260332,4600.1,4600.0,0.5085]
[1758210228786,0.22,4600.1,4600.0,0.8275]
[1758210229590,0.2992,4600.9,4600.1,0.319]
[1758210229786,1.19636449,4600.8,4600.7,0.7097]
[1758210229985,0.99796449,4600.8,4600.7,0.7097]
[1758210230290,1.01936449,4600.8,4600.7,0.7097]
[1758210230485,0.77254697,4600.8,4600.7,0.7097]
[1758210230687,0.22,4600.8,4600.7,0.7097]
[1758210231089,1.1693712,4600.8,4600.7,0.7097]
[1758210231292,1.71532161,4600.8,4600.7,0.5144]
[1758210233594,1.71521058,4600.8,4600.7,0.5144]
[1758210234589,1.71521058,4600.8,4600.5,0.1178]
[1758210234590,0.6863,4600.6,4600.5,0.3185]
[1758210234787,0.9487712,4600.6,4600.5,0.8439]
[1758210235491,1.19535954,4600.6,4600.2,3.5263]
[1758210235689,0.22,4600.9,4599.7,3.2078]
[1758210235690,0.2899,4600.2,4599.7,3.2078]
[1758210235992,0.6863,4599.8,4599.7,3.7341]
[1758210236187,0.3964,4599.8,4599.7,3.9288]
[1758210238391,0.6863,4599.8,4599.7,3.9288]
[1758210238589,1.23858477,4599.8,4599.7,3.9288]
[1758210238895,0.94868477,4599.8,4599.7,3.9288]
[1758210239696,0.74678477,4599.8,4599.7,3.9288]
[1758210239895,0.55228477,4599.8,4599.7,3.9288]
[1758210242191,0.7990632,4599.8,4599.7,3.9288]
[1758210243191,0.1073,4601.0,4599.7,3.9288]
[1758210243192,0.3964,4600.9,4600.8,0.4025]
[1758210243395,0.66130599,4600.9,4600.8,0.721]
[1758210243582,1.21384202,4600.9,4600.8,0.721]
[1758210243786,0.99384202,4600.9,4600.8,0.721]
[1758210243991,1.01934202,4600.9,4600.8,0.721]
[1758210244192,0.77253603,4600.9,4600.8,0.721]
[1758210244391,0.22,4600.9,4600.8,0.721]
[1758210245898,0.77220425,4600.9,4600.8,0.721]
[1758210246294,0.22,4600.9,4600.8,0.721]
[1758210247095,0.417,4600.9,4600.8,0.721]
[1758210247497,0.22,4600.9,4600.8,0.721]
[1758210248791,35.444,4601.1,4601.0,0.8069]
[1758210248990,36.19314976,4601.1,4601.0,0.8069]
[1758210249192,36.38954976,4601.1,4601.0,0.8069]
[1758210249394,0.96914976,4601.1,4601.0,0.8069]
[1758210249598,0.77214976,4601.1,4601.0,0.8069]
[1758210249789,0.96914976,4601.1,4601.0,0.8069]
[1758210249995,1.16554976,4601.1,4601.0,0.8069]
[1758210251196,0.3031,4600.8,4600.3,0.2913]
[1758210251391,0.3934,4600.4,4600.3,0.6877]
[1758210252198,0.6965,4600.4,4600.3,0.6877]
[1758210252699,0.3934,4600.4,4600.3,0.6877]
[1758210255507,0.6965,4600.4,4600.3,0.6877]
[1758210255807,0.3934,4600.4,4600.3,0.6877]
[1758210258609,0.6965,4600.4,4600.3,0.6877]
[1758210260410,0.3934,4600.4,4600.1,3.2295]
[1758210260604,0.6965,4600.2,4600.1,3.2295]
[1758210260804,1.7108372,4600.2,4600.1,3.2295]
[1758210261104,1.7108372,4600.2,4600.1,3.2078]
[1758210262104,5.7108372,4600.2,4599.3,3.4991]
[1758210262410,0.3934,4599.4,4599.3,3.8955]
[1758210262804,1.24887936,4599.4,4599.3,3.7039]
[1758210263003,41.98749962,4599.4,4599.1,0.2913]
[1758210263208,0.6965,4599.2,4599.1,0.4961]
[1758210263516,0.94577936,4599.2,4599.1,0.6877]
[1758210264212,1.24887936,4599.2,4599.1,0.6877]
[1758210264510,0.3934,4598.9,4598.8,3.2078]
[1758210264707,0.9165,4598.9,4598.8,3.2078]
[1758210265213,0.9165,4598.9,4598.8,3.7039]
[1758210265612,0.197,4598.9,4598.8,3.8955]
[1758210265811,0.417,4598.9,4598.8,3.8955]
[1758210266014,0.22,4598.9,4598.8,3.8955]
[1758210266713,41.1031,4599.4,4599.0,0.1192]
[1758210266913,41.4965,4599.4,4599.3,0.6877]
[1758210267212,42.50930361,4599.4,4599.3,0.6877]
[1758210267512,42.50930361,4599.4,4599.3,0.2913]
[1758210268106,42.50930361,4599.4,4599.0,0.1192]
[1758210268309,0.6965,4598.9,4598.8,3.4991]
[1758210268504,0.9165,4598.9,4598.8,3.4126]
[1758210268702,0.9165,4598.9,4598.8,3.8955]
[1758210269108,0.6134,4598.9,4598.8,3.8955]
[1758210271411,0.9165,4598.9,4598.8,3.8955]
[1758210272212,41.1934,4599.4,4599.3,0.2048]
[1758210272416,42.50813961,4599.4,4599.3,0.6877]
[1758210272718,42.26717474,4599.4,4599.3,0.6877]
[1758210273718,42.26717474,4599.4,4599.3,0.4961]
[1758210275614,41.35067474,4599.4,4599.3,0.6877]
[1758210275814,41.98917474,4599.4,4599.3,0.6877]
[1758210276020,41.35067474,4599.4,4599.3,0.6877]
[1758210276221,0.22,4599.4,4599.3,0.6877]
[1758210276615,35.5427,4600.0,4599.3,0.6877]
[1758210276920,35.5427,4600.0,4599.7,0.7189]
[1758210276921,0.98097658,4599.8,4599.7,0.7189]
[1758210279130,1.18917658,4599.8,4599.7,0.7189]
[1758210279329,1.50787658,4599.8,4599.7,0.7189]
[1758210279631,0.96917658,4599.8,4599.7,0.7189]
[1758210279831,0.98097658,4599.8,4599.7,0.7189]
[1758210281325,1.22322884,4599.8,4599.7,0.7189]
[1758210282325,1.01292884,4599.8,4599.7,0.7189]
[1758210283632,0.77067658,4599.8,4599.7,0.7189]
[1758210285330,1.01316077,4599.8,4599.7,0.7189]
[1758210286028,1.22346077,4599.8,4599.7,0.7189]
[1758210287431,1.75036077,4599.8,4599.7,0.5141]
[1758210287625,1.75049148,4599.8,4599.7,0.3159]
[1758210287827,1.43179148,4599.8,4599.4,0.3159]
[1758210288027,0.7372,4599.4,4599.3,3.9267]
[1758210288334,1.50965053,4599.4,4599.3,3.9267]
[1758210289040,1.19095053,4599.4,4599.3,3.9267]
[1758210290238,0.98275053,4599.4,4599.3,3.9267]
[1758210290939,0.77245053,4599.4,4599.3,3.9267]
[1758210291536,1.01544474,4599.4,4599.3,3.9267]
[1758210291839,0.77245053,4599.4,4599.3,3.9267]
[1758210292040,1.01544474,4599.4,4599.3,3.9267]
[1758210295745,0.77245053,4599.4,4599.3,3.9267]
[1758210299148,0.22,4599.7,4599.6,0.7211]
[1758210299344,0.2986,4600.6,4599.7,0.3166]
[1758210299544,0.2986,4600.6,4600.5,0.8433]
[1758210299545,0.6945,4600.6,4600.5,0.8433]
[1758210299740,1.71051711,4600.6,4600.5,0.8433]
[1758210299942,1.41191711,4600.6,4600.5,0.8433]
[1758210300246,1.01601711,4600.6,4600.5,0.8433]
[1758210300638,0.79601711,4600.6,4600.5,0.8433]
[1758210300834,1.21561711,4600.6,4600.5,0.8433]
[1758210301048,1.71051711,4600.6,4600.5,0.8433]
[1758210301346,1.71051711,4600.6,4600.5,0.5093]
[1758210301546,1.46754529,4600.6,4600.5,0.5093]
[1758210302149,1.46754529,4600.6,4600.5,0.8433]
[1758210302346,1.16894529,4600.6,4600.5,0.8433]
[1758210303741,0.77304529,4600.6,4600.5,0.8433]
[1758210304040,0.97264529,4600.6,4600.5,0.8433]
[1758210304247,1.16894529,4600.6,4600.5,0.8433]
[1758210304956,0.97264529,4600.6,4600.5,0.8433]
[1758210305444,3.6037,4601.6,4601.5,0.8485]
[1758210305641,4.42236993,4601.6,4601.5,0.8485]
[1758210305843,0.99456993,4601.6,4601.5,0.8485]
[1758210306043,0.55231432,4601.6,4601.5,0.8485]
[1758210306245,35.23,4601.7,4601.6,0.684]
[1758210306446,0.4008,4602.5,4602.4,0.1976]
[1758210306645,1.71418371,4602.5,4602.4,0.4872]
[1758210307041,1.49418371,4602.5,4602.4,0.4872]
[1758210307246,1.71418371,4602.5,4602.4,0.684]
[1758210307450,1.41498371,4602.5,4602.4,0.684]
[1758210307644,1.17256793,4602.5,4602.4,0.684]
[1758210307953,1.47176793,4602.5,4602.4,0.684]
[1758210308851,1.47176793,4602.5,4602.4,0.4872]
[1758210309748,0.92,4602.5,4602.4,0.4872]
[1758210310343,0.92,4602.5,4602.2,0.0217]
[1758210310344,1.0274,4602.5,4602.2,0.0217]
[1758210317051,3.2078,4603.1,4602.5,0.1274]
[1758210317243,0.4008,4602.7,4602.6,0.684]
[1758210317445,0.6208,4602.7,4602.6,0.684]
[1758210318144,0.22,4602.7,4602.6,0.684]
[1758210318950,3.9078,4603.1,4603.0,0.8114]
[1758210319155,4.1278,4603.1,4603.0,0.8114]
[1758210319451,4.1278,4603.1,4603.0,0.4872]
[1758210319652,3.9078,4603.1,4603.0,0.4872]
[1758210319949,3.9078,4603.1,4602.2,0.0217]
[1758210319950,0.7,4602.3,4602.2,0.0217]
[1758210320246,1.41380329,4602.3,4600.9,3.4974]
[1758210320452,0.4008,4601.0,4600.9,3.8918]
[1758210320647,0.6208,4601.0,4600.9,3.8918]
[1758210321148,40.8,4601.9,4600.9,3.6022]
[1758210321353,0.2086,4601.2,4601.1,0.684]
[1758210321553,0.4286,4601.2,4601.1,0.684]
[1758210322051,0.92,4601.2,4601.1,0.684]
[1758210323151,0.6208,4601.2,4601.1,0.684]
[1758210323347,3.2078,4601.5,4601.2,0.2896]
[1758210323555,3.4164,4602.0,4601.9,0.684]
[1758210323755,4.18581232,4602.0,4601.9,0.684]
[1758210324747,0.75801232,4602.0,4601.9,0.684]
[1758210324954,3.9078,4603.2,4603.1,0.4872]
[1758210325154,4.92172324,4603.2,4603.1,0.4872]
[1758210325348,45.72172324,4603.2,4603.1,0.4872]
[1758210325545,45.72172324,4603.2,4602.5,0.1274]
[1758210325755,0.2086,4602.7,4602.6,0.684]
[1758210325950,0.92,4602.7,4602.6,0.2896]
[1758210326160,4.921956,4602.7,4601.6,0.2896]
[1758210326352,0.4066,4602.5,4601.6,0.2896]
[1758210326547,1.17044563,4602.4,4602.3,0.1976]
[1758210326752,1.46964563,4602.4,4602.3,0.4872]
[1758210327771,1.17044563,4602.4,4602.3,0.684]
[1758210327961,0.6208,4602.4,4602.3,0.684]
[1758210328454,0.4286,4602.4,4602.3,0.684]
[1758210329362,0.97932338,4602.4,4602.3,0.684]